Cogmind - Beta 9.2 @@@ ROGUE MODE // 2019.12.10 @ 01:16:08 Player: Suslik Result: Self-destructed Performance ------------- Evolutions (2) 1000 Regions Visited (9) 1800 Robots Destroyed (101) 505 Value Destroyed (3340) 3340 Prototype IDs (28) 560 Alien Tech Used (0) 0 Bonus (1022) 1022 TOTAL SCORE: 8227 Bonus ------- High Alert Combat Kills 22 Entered Garrisons 200 Used RIF Installer 500 Aligned with FarCom 300 Cogmind --------- Core Integrity 479/550 Matter 290/300 Energy 239/265 System Corruption 0% Temperature Cool (0) Movement Treading (225) Ox3 Location -8/Storage Parts ------- > --- POWER (1) -------- Improved Ion Engine > --- PROPULSION (2) --- Improved Treads Armored Treads > --- UTILITY (6) ------ Large Storage Unit High-capacity Storage Unit High-capacity Storage Unit High-capacity Storage Unit Force Booster Reactive Plating > --- WEAPON (2) ------- Advanced Assault Cannon Katana > --- INVENTORY (34) --- Light Ion Engine Wheel Compact Wheel Heat Sink High-capacity Storage Unit High-capacity Storage Unit Lightpack 2.0 High-capacity Matter Pod (200) Experimental Sensor Array Medium Armor Plating Medium Armor Plating Medium Armor Plating Hardened Medium Armor Plating Relay Coupler [Swarmer] (38) Relay Coupler [Swarmer] (37) Relay Coupler [Grunt] (22) Relay Coupler [Sentry] (22) Relay Coupler [Sentry] (21) Shock Rifle Latent Energy Streamer Heavy Particle Cannon Ion Cannon Firepult High-powered Shotgun Advanced Assault Cannon Advanced Assault Cannon Advanced Assault Cannon Rocket Launcher Rocket Launcher Datajack Datajack Katana Peak State ------------ > --- POWER ------------ Improved Ion Engine > --- PROPULSION ------- Improved Treads Armored Treads > --- UTILITY ---------- Large Storage Unit High-capacity Storage Unit High-capacity Storage Unit High-capacity Storage Unit Force Booster Reactive Plating > --- WEAPON ----------- Advanced Assault Cannon Katana > --- INVENTORY -------- Light Ion Engine Wheel Compact Wheel Heat Sink High-capacity Storage Unit High-capacity Storage Unit Lightpack 2.0 High-capacity Matter Pod Experimental Sensor Array Medium Armor Plating Medium Armor Plating Medium Armor Plating Hardened Medium Armor Plating Relay Coupler [Swarmer] Relay Coupler [Swarmer] Relay Coupler [Grunt] Relay Coupler [Sentry] Relay Coupler [Sentry] Shock Rifle Latent Energy Streamer Heavy Particle Cannon Ion Cannon Firepult High-powered Shotgun Advanced Assault Cannon Advanced Assault Cannon Advanced Assault Cannon Rocket Launcher Rocket Launcher Datajack Datajack Katana [Rating: 37] Favorites ----------- Power Improved Ion Engine Engine Improved Ion Engine Propulsion Light Treads Treads Light Treads Leg Aluminum Leg Wheel Compact Wheel Utility High-capacity Storage Unit Device Heat Sink Storage High-capacity Storage Unit Hackware Hacking Suite Protection Medium Armor Plating Weapon Advanced Assault Cannon Energy Gun EM Pulse Gun Energy Cannon Advanced Beam Cannon Ballistic Gun Light Assault Rifle Ballistic Cannon Advanced Assault Cannon Launcher Rocket Launcher Special Weapon Plasma Flamer Slashing Weapon Katana Build | -11 -10 -10 -9 -9 -9 -8 -8 -8 -8 ------- Run | Scr Mat Min Mat Min Exi Min Mat Gar Sto Slots Evolved 4 | . . . 2 . . . 2 . . Power . | . . . . . . . . . . Propulsion . | . . . . . . . . . . Utility 4 | . . . 2 . . . 2 . . Weapon . | . . . . . . . . . . Parts Attached 99 | 2 6 4 24 17 5 4 27 9 1 Power 7 | . 1 1 2 2 . . 1 . . Engine 7 | . 1 1 2 2 . . 1 . . Core . | . . . . . . . . . . Reactor . | . . . . . . . . . . Propulsion 13 | 2 . 1 4 3 . . 3 . . Treads 11 | 2 . . 3 3 . . 3 . . Leg . | . . . . . . . . . . Wheel 2 | . . 1 1 . . . . . . Hover . | . . . . . . . . . . Flight . | . . . . . . . . . . Utility 27 | . 2 . 4 4 3 1 8 4 1 Device 7 | . . . 1 1 1 . . 3 1 Storage 7 | . 2 . 2 . 1 . 2 . . Processor . | . . . . . . . . . . Hackware 2 | . . . . . . . 2 . . Protection 11 | . . . 1 3 1 1 4 1 . Artifact . | . . . . . . . . . . Weapon 52 | . 3 2 14 8 2 3 15 5 . Energy Gun 11 | . . 1 6 . 1 2 1 . . Energy Cannon 8 | . . . 3 2 . 1 1 1 . Ballistic Gun 6 | . 1 1 2 . 1 . 1 . . Ballistic Cannon 6 | . . . . . . . 4 2 . Launcher 8 | . . . 2 3 . . 2 1 . Special Weapon 1 | . . . . 1 . . . . . Impact Weapon . | . . . . . . . . . . Slashing Weapon 12 | . 2 . 1 2 . . 6 1 . Piercing Weapon . | . . . . . . . . . . Special Melee Weapon . | . . . . . . . . . . Unidentified Prototypes 4 | . . . 3 . 1 . . . . Parts Lost 23 | . . 3 5 7 . 3 5 . . Power 5 | . . 1 2 1 . . 1 . . Propulsion 6 | . . 1 1 2 . . 2 . . Utility 3 | . . . . 1 . 1 1 . . Weapon 9 | . . 1 2 3 . 2 1 . . Highest Loss Streak 3 | . . 2 2 3 . 2 1 . . Average Slot Usage (%) 97 | . 99 99 95 89 95 100 99 100 . Engine 10 | . 14 13 10 10 11 11 8 9 . Treads 20 | . 28 19 17 22 22 22 17 18 . Wheel 1 | . . 8 3 . . . . . . Device 2 | . . . 5 2 . . . 9 . Storage 32 | . 27 28 32 33 33 33 33 36 . Hackware 2 | . . . . . . . 5 4 . Protection 6 | . . . 4 7 11 11 13 4 . Energy Gun 2 | . 5 8 4 . . 10 . . . Energy Cannon 3 | . . . 13 4 . . 1 1 . Ballistic Gun 5 | . 16 14 3 . 6 11 1 . . Ballistic Cannon 3 | . . . . . . . 7 11 . Slashing Weapon 5 | . 5 5 . 3 11 . 6 4 . Naked Turns . | . . . . . . . . . . Heaviest Build 144 | 10 58 59 98 98 99 100 144 140 . Greatest Support 43 | 40 40 40 40 40 40 40 43 43 . Greatest Overweight (x) 6 | . 1 3 5 2 2 2 6 3 . Average Overweight (x) 2 | . . 2 2 2 2 2 2 3 . Largest Inventory Capacity 34 | 6 18 18 26 26 26 26 34 34 34 Average Capacity 26 | 6 14 18 25 26 26 26 32 34 34 Most Carried 34 | 6 15 17 26 26 26 26 34 34 34 Average Carried 24 | 5 11 15 24 25 25 25 30 32 34 Final Capacity 34 | 6 18 18 26 26 26 26 34 34 34 Final Carried 34 | 4 15 14 26 26 26 26 33 34 34 Class Distribution -------------------- 76% | Hauler-Mutant 23% | Mutant Dominant Class ---------------- Mutant | -10/Materials Mutant | -10/Mines Hauler-Mutant | -9/Materials Hauler-Mutant | -9/Mines Hauler-Mutant | -9/Exiles Hauler-Mutant | -8/Mines Hauler-Mutant | -8/Materials Hauler-Mutant | -8/Garrison Hauler-Mutant | -8/Storage Resources | -11 -10 -10 -9 -9 -9 -8 -8 -8 -8 ----------- Run | Scr Mat Min Mat Min Exi Min Mat Gar Sto Matter Collected 2212 | 201 137 258 369 122 . 167 698 260 . Remotely . | . . . . . . . . . . Salvage Created 3182 | 61 434 236 1071 294 . 167 609 310 . Parts 186 | 1 17 17 70 22 . 5 40 14 . Haulers Intercepted 4 | . . . 3 . . . 1 . . Recyclers Shooed 3 | . 1 . . 1 . . 1 . . Parts Field Recycled . | . . . . . . . . . . Retrieved Matter . | . . . . . . . . . . Parts Self-Destructed . | . . . . . . . . . . Prevented . | . . . . . . . . . . Kills | -11 -10 -10 -9 -9 -9 -8 -8 -8 -8 ------- Run | Scr Mat Min Mat Min Exi Min Mat Gar Sto Combat Hostiles Destroyed 78 | . 9 5 20 15 . 3 15 11 . Melee 12 | . 5 1 . 1 . . 3 2 . Guns 13 | . 4 . 5 . . 3 1 . . Cannons 30 | . . . 12 10 . . 3 5 . AOE 23 | . . 4 3 4 . . 8 4 . Classes Destroyed 14 | 1 3 4 3 1 . 1 . 1 . Worker 3 | . . 2 1 . . . . . . Builder 3 | . . 1 . . . . 2 . . Tunneler 2 | . . 2 . . . . . . . Hauler 4 | . . . 3 . . . 1 . . Recycler 3 | 1 . . 1 . . . 1 . . Operator 3 | . 1 . 1 . . . 1 . . Watcher 5 | . 2 . 1 . . . 2 . . Swarmer 18 | . . 3 . 7 . . 4 4 . Grunt 44 | . 9 2 14 5 . 2 8 4 . Brawler 2 | . . . 1 . . . . 1 . Duelist 2 | . . . . . . 1 . 1 . Sentry 10 | . . . 5 2 . . 3 . . Hunter 1 | . . . . . . . . 1 . Assembled 1 | . . . . 1 . . . . . Best Kill Streak 8 | 1 4 5 4 4 . 3 8 6 . Combat Bots Only 6 | . 4 2 4 4 . 3 5 6 . Max Kills in Single Turn 3 | 1 1 3 2 1 . 1 3 3 . Gunslinging . | . . . . . . . . . . Exploded 3 | . . 2 1 1 . . 2 3 . Melee 1 | . 1 1 . 1 . . 1 1 . Uniques/NPCs Destroyed . | . . . . . . . . . . Combat | -11 -10 -10 -9 -9 -9 -8 -8 -8 -8 -------- Run | Scr Mat Min Mat Min Exi Min Mat Gar Sto Damage Taken 4199 | . 508 214 964 932 . 274 1041 266 . Core 575 | . 158 31 188 99 . 28 46 25 . Absorbed by Shields . | . . . . . . . . . . Core Remaining (%) 48 | 100 . 24 . . . 21 . . . Volleys Fired 208 | 1 24 15 75 36 . 11 23 23 . Largest 2 | 2 2 2 2 2 . 2 2 2 . Hottest 136 | 60 60 60 136 136 . 91 108 108 . Shots Fired 346 | 2 48 29 130 38 . 22 40 37 . Gun 166 | 2 48 29 63 . . 21 3 . . Cannon 144 | . . . 61 19 . 1 28 35 . Launcher 21 | . . . 6 4 . . 9 2 . Special 15 | . . . . 15 . . . . . Kinetic 140 | 1 38 17 24 . . 11 26 23 . Thermal 120 | . . . 68 34 . 1 5 12 . Explosive 21 | . . . 6 4 . . 9 2 . Electromagnetic 65 | 1 10 12 32 . . 10 . . . Robot Hit Streak 25 | 2 9 5 25 6 . 6 9 7 . Robot Miss Streak 6 | . 3 6 4 4 . 2 4 3 . Penetration Max . | . . . . . . . . . . Secondary Targets 2 | . . . 1 . . 1 . . . Max Gunslinging Chain 1 | . . . 1 . . 1 . . . Shots Hit Robots 252 | 2 51 18 83 26 . 16 34 22 . Core Hits 155 | 2 23 11 44 20 . 7 33 15 . Critical Hits 12 | . . . 6 3 . . 2 1 . Critical Kills 6 | . . . 2 2 . . 2 . . Critical Parts Destroyed 4 | . . . 2 1 . . . 1 . Melee Attacks 127 | . 36 4 1 13 . . 69 4 . Impact . | . . . . . . . . . . Slashing 127 | . 36 4 1 13 . . 69 4 . Piercing . | . . . . . . . . . . Sneak Attacks 7 | . 3 2 . . . . 2 . . Combat Hostiles . | . . . . . . . . . . Follow-up Attacks . | . . . . . . . . . . Damage Inflicted 7577 | 19 959 485 1984 1056 . 289 1994 791 . Guns 1303 | 19 350 129 568 . . 219 18 . . Cannons 2133 | . . . 863 287 . 21 493 469 . Explosions 2581 | . 32 220 547 566 . 49 915 252 . Melee 1336 | . 563 117 . 48 . . 538 70 . Ramming 83 | . 14 19 6 14 . . 30 . . Kinetic 1245 | 6 208 65 155 . . 107 418 286 . Thermal 2152 | . 32 220 934 428 . 70 285 183 . Explosive 2088 | . . . 547 566 . . 723 252 . Electromagnetic 673 | 13 142 64 342 . . 112 . . . Impact . | . . . . . . . . . . Slashing 1336 | . 563 117 . 48 . . 538 70 . Piercing . | . . . . . . . . . . Highest Corruption . | . . . . . . . . . . Average Corruption . | . . . . . . . . . . Corruption Purged . | . . . . . . . . . . Overload Shots . | . . . . . . . . . . Overflow Damage 345 | . 107 . 8 78 . 18 129 5 . Projectiles 52 | . . . 2 21 . . 24 5 . Explosions 186 | . . . 6 57 . 18 105 . . Melee 107 | . 107 . . . . . . . . Knockbacks 4 | . . . . . . . 3 1 . Impact . | . . . . . . . . . . Kinetic 4 | . . . . . . . 3 1 . Secondary . | . . . . . . . . . . Self-Inflicted Damage 205 | . 26 9 . 70 . . 100 . . Shots 5 | . 1 . . 2 . . 2 . . Rammed 8 | . 1 1 . 4 . . 2 . . Targets Rammed 9 | . 1 1 1 4 . . 2 . . Kicked . | . . . . . . . . . . Crushed 1 | . . . 1 . . . . . . Highest Temperature 330 | 20 76 15 305 198 . 44 144 330 . Average Temperature 63 | 15 20 6 89 70 . 18 44 67 . Received Heat Transfer 1749 | . 279 81 429 294 . 99 486 81 . Effects 2 | . . . 2 . . . . . . Energy Bleed 1 | . . . 1 . . . . . . Interference 1 | . . . 1 . . . . . . Siege Activations . | . . . . . . . . . . Robots Corrupted . | . . . . . . . . . . Combat Hostiles . | . . . . . . . . . . Parts Fried 6 | . 3 . 3 . . . . . . Impact Corruptions . | . . . . . . . . . . Robots Melted . | . . . . . . . . . . Combat Hostiles . | . . . . . . . . . . Parts Melted 8 | . . 1 3 3 . . . 1 . Heat Transferred 3881 | . 50 100 1702 1398 . 87 248 296 . Parts Sabotaged . | . . . . . . . . . . Parts Stolen . | . . . . . . . . . . Parts Stripped . | . . . . . . . . . . Power Chain Reactions 5 | . 1 3 . . . 1 . . . Missiles Intercepted . | . . . . . . . . . . Alert | -11 -10 -10 -9 -9 -9 -8 -8 -8 -8 ------- Run | Scr Mat Min Mat Min Exi Min Mat Gar Sto Peak Influence 606 | 5 217 75 249 316 . 79 269 606 295 Average Influence 170 | 5 62 9 134 217 . 71 123 461 295 Maximum Alert Level 2 | . 1 . 1 1 . . 1 2 1 Low Security (%) 67 | 100 93 100 85 34 . 100 71 14 . Level 1 20 | . 6 . 14 65 . . 28 13 100 Level 2 12 | . . . . . . . . 72 . Level 3 . | . . . . . . . . . . Level 4 . | . . . . . . . . . . Level 5 . | . . . . . . . . . . High Security . | . . . . . . . . . . Max Security . | . . . . . . . . . . Squads Dispatched 10 | . 2 . 3 1 . . 4 . . Investigation 3 | . . . 3 . . . . . . Extermination . | . . . . . . . . . . Reinforcement 7 | . 2 . . 1 . . 4 . . Assault . | . . . . . . . . . . Garrison . | . . . . . . . . . . Intercept . | . . . . . . . . . . Construction Impeded 2 | . . . . 1 . . 1 . . Haulers Reinforced . | . . . . . . . . . . Stealth | -11 -10 -10 -9 -9 -9 -8 -8 -8 -8 --------- Run | Scr Mat Min Mat Min Exi Min Mat Gar Sto Distress Signals 4 | . 1 . 1 . . . 2 . . Communications Jammed . | . . . . . . . . . . Distress Signals . | . . . . . . . . . . Times Spotted 116 | . 18 6 28 15 . 3 35 11 . Peak Tracking Total 8 | . 3 2 6 4 . 3 7 8 . Tactical Retreats 8 | . 1 1 2 . . . 2 2 . Traps | -11 -10 -10 -9 -9 -9 -8 -8 -8 -8 ------- Run | Scr Mat Min Mat Min Exi Min Mat Gar Sto Traps Triggered 10 | . . . 2 . . . . 8 . Indirectly . | . . . . . . . . . . Trap Hack Attempts . | . . . . . . . . . . Triggered . | . . . . . . . . . . Disarmed . | . . . . . . . . . . Reprogrammed . | . . . . . . . . . . Reused . | . . . . . . . . . . Traps Extracted . | . . . . . . . . . . Installed . | . . . . . . . . . . Triggered 1 | . 1 . . . . . . . . Machines | -11 -10 -10 -9 -9 -9 -8 -8 -8 -8 ---------- Run | Scr Mat Min Mat Min Exi Min Mat Gar Sto Machines Disabled 13 | . 1 1 2 4 . 1 1 3 . Max in Single Turn 2 | . 1 1 1 2 . 1 1 2 . Garrison Relay 1 | . . . . . . . . 1 . Phase Generator 1 | . . . . . . . . 1 . Machines Sabotaged . | . . . . . . . . . . Garrisons Compromised . | . . . . . . . . . . Overloaded Fab Kills . | . . . . . . . . . . Fab Network Shutdowns . | . . . . . . . . . . Hacking | -11 -10 -10 -9 -9 -9 -8 -8 -8 -8 --------- Run | Scr Mat Min Mat Min Exi Min Mat Gar Sto Machines Accessed 16 | . 2 . 4 . 2 . 8 . . Terminals 10 | . 2 . 3 . . . 5 . . Fabricators . | . . . . . . . . . . Repair Stations 2 | . . . 1 . . . 1 . . Recycling Units . | . . . . . . . . . . Scanalyzers 1 | . . . . . . . 1 . . Garrison Access 1 | . . . . . . . 1 . . Total Hacks 40 | . 3 . 7 . 2 . 28 . . Successful 27 | . 3 . 5 . 2 . 17 . . Failed 13 | . . . 2 . . . 11 . . Catastrophic 1 | . . . . . . . 1 . . Database Lockouts . | . . . . . . . . . . Manual 21 | . 2 . 3 . 1 . 15 . . Terminals 28 | . 3 . 4 . . . 21 . . Fabricators . | . . . . . . . . . . Repair Stations 5 | . . . 3 . . . 2 . . Recycling Units . | . . . . . . . . . . Scanalyzers 3 | . . . . . . . 3 . . Garrison Access 2 | . . . . . . . 2 . . Terminal Hacks 19 | . 3 . 3 . 2 . 11 . . Record 1 | . . . . . 1 . . . . Part Schematic 1 | . . . 1 . . . . . . Prototype ID Bank 1 | . . . . . . . 1 . . Branch Access Points 1 | . . . 1 . . . . . . Garrison Index 1 | . . . . . . . 1 . . Unreport Threat 2 | . 1 . . . . . 1 . . Locate Traps 1 | . . . . . . . 1 . . Hauler Manifests 3 | . 1 . 1 . . . 1 . . Registered Components 1 | . . . . . . . 1 . . Zone Layout 6 | . 1 . . . . . 5 . . EX-Prototype ID Bank 1 | . . . . . 1 . . . . Fabricator Hacks . | . . . . . . . . . . Repair Station Hacks 4 | . . . 2 . . . 2 . . Scan Component 2 | . . . 1 . . . 1 . . Repair 2 | . . . 1 . . . 1 . . Recycling Unit Hacks . | . . . . . . . . . . Scanalyzer 2 | . . . . . . . 2 . . Insert Component 1 | . . . . . . . 1 . . Analyze 1 | . . . . . . . 1 . . Garrison Access Hacks 1 | . . . . . . . 1 . . Unlock Access 1 | . . . . . . . 1 . . Unauthorized Hacks 3 | . . . . . . . 3 . . Terminals 1 | . . . . . . . 1 . . Track 1 | . . . . . . . 1 . . Fabricators . | . . . . . . . . . . Repair Stations . | . . . . . . . . . . Recycling Units . | . . . . . . . . . . Scanalyzers . | . . . . . . . . . . Garrison Access . | . . . . . . . . . . Data Cores Recovered 1 | . . . 1 . . . . . . Used . | . . . . . . . . . . Hacking Detections 5 | . . . 2 . . . 3 . . Full Trace Events 1 | . . . 1 . . . . . . Feedback Events . | . . . . . . . . . . Feedback Blocked . | . . . . . . . . . . Robot Schematics Acquired . | . . . . . . . . . . Robots Built . | . . . . . . . . . . Matter . | . . . . . . . . . . Time . | . . . . . . . . . . Total Robot Build Rating . | . . . . . . . . . . Part Schematics Acquired 2 | . . . 1 . . . 1 . . Parts Built . | . . . . . . . . . . Matter . | . . . . . . . . . . Time . | . . . . . . . . . . Total Part Build Rating . | . . . . . . . . . . Parts Repaired 2 | . . . 1 . . . 1 . . Time 106 | . . . 26 . . . 80 . . Parts Recycled . | . . . . . . . . . . Recycled Matter . | . . . . . . . . . . Retrieved Matter . | . . . . . . . . . . Retrieved Components . | . . . . . . . . . . Parts Scanalyzed 1 | . . . . . . . 1 . . Part Schematics Acquired 1 | . . . . . . . 1 . . Parts Damaged . | . . . . . . . . . . Bothacking | -11 -10 -10 -9 -9 -9 -8 -8 -8 -8 ------------ Run | Scr Mat Min Mat Min Exi Min Mat Gar Sto Used RIF Installer 1 | . . . . . . . . 1 . Robots Hacked . | . . . . . . . . . . Non-combat . | . . . . . . . . . . Combat . | . . . . . . . . . . Robot Hacks Applied . | . . . . . . . . . . Relay Couplers Released 5 | . . . . . . . . 5 . Machine Destruction 5 | . . . . . . . . 5 . Robots Rewired . | . . . . . . . . . . Allies Hacked . | . . . . . . . . . . Hacks Repelled . | . . . . . . . . . . Allies | -11 -10 -10 -9 -9 -9 -8 -8 -8 -8 -------- Run | Scr Mat Min Mat Min Exi Min Mat Gar Sto Total Allies . | . . . . . . . . . . Largest Group . | . . . . . . . . . . Highest-Rated Group . | . . . . . . . . . . Highest-Rated Ally . | . . . . . . . . . . Total Orders . | . . . . . . . . . . Ally Attacks . | . . . . . . . . . . Total Damage . | . . . . . . . . . . Kills . | . . . . . . . . . . Allies Corrupted . | . . . . . . . . . . Allies Melted . | . . . . . . . . . . Intel | -11 -10 -10 -9 -9 -9 -8 -8 -8 -8 ------- Run | Scr Mat Min Mat Min Exi Min Mat Gar Sto Robot Analysis Total . | . . . . . . . . . . Derelict Logs Recovered 3 | . . 2 . 1 . . . . . Drone Launches . | . . . . . . . . . . Drone Recoveries . | . . . . . . . . . . Exploration | -11 -10 -10 -9 -9 -9 -8 -8 -8 -8 ------------- Run | Scr Mat Min Mat Min Exi Min Mat Gar Sto Turns Passed 8455 | 22 937 908 1289 873 709 302 2098 1315 2 Spaces Moved 3588 | 13 392 568 542 345 349 131 718 530 . Core . | . . . . . . . . . . Treads 3044 | 3 392 198 378 345 349 131 718 530 . Legs 10 | 10 . . . . . . . . . Wheels 534 | . . 370 164 . . . . . . Hover . | . . . . . . . . . . Flight . | . . . . . . . . . . Fastest Speed 120 | 120 160 130 120 200 200 200 200 225 . Average Speed 193 | 129 179 147 180 200 200 200 219 225 . Slowest Speed 290 | 160 180 180 240 200 200 200 290 225 . Overloaded Moves . | . . . . . . . . . . Propulsion Burnouts . | . . . . . . . . . . Robots Hopped . | . . . . . . . . . . Cave-ins Triggered . | . . . . . . . . . . Exploration Rate (%) 49 | 2 57 99 49 59 70 22 61 74 2 Regions Visited 9 Branch Regions 5 Pre-discovered Areas 2 | . . 1 . . 1 . . . . Known Exits Taken 2 | . . . 1 . . . 1 . . Unknown Exits Taken 6 | 1 1 1 . 1 1 1 . . . Scrap Searched 1 | . . 1 . . . . . . . Spaces Dug 94 | . 9 . 3 17 . . 62 3 . Terrain Destroyed 324 | . 14 14 35 33 . 4 167 57 . Melee 66 | . 9 . 1 6 . . 50 . . Projectile 5 | . . . . 1 . . 4 . . AOE 253 | . 5 14 34 26 . 4 113 57 . Actions | -11 -10 -10 -9 -9 -9 -8 -8 -8 -8 --------- Run | Scr Mat Min Mat Min Exi Min Mat Gar Sto Total 4501 | 17 510 601 718 450 361 149 1085 609 1 Wait 347 | . 35 9 38 23 . 1 223 18 . Move 3580 | 12 391 567 541 344 348 130 718 529 . Hop . | . . . . . . . . . . Pick Up 71 | . 13 1 21 7 3 3 17 6 . Fast Attach 16 | . 1 . 9 3 1 . 2 . . Attach 25 | . . 3 6 3 1 3 6 3 . Detach 7 | . . . 5 . . . . 2 . Swap 59 | 2 5 1 10 11 3 1 19 6 1 Drop 36 | 2 4 . 11 6 5 . 6 2 . Fire 208 | 1 24 15 75 36 . 11 23 23 . Melee 127 | . 36 4 1 13 . . 69 4 . Ram 1 | . . 1 . . . . . . . Kick . | . . . . . . . . . . Crush 8 | . 1 . 1 4 . . 2 . . Escape Stasis 16 | . . . . . . . . 16 . Rewire . | . . . . . . . . . . Trap . | . . . . . . . . . . Miscellaneous . | . . . . . . . . . . Route ------- -11/Scrapyard -10/Materials (discovered 3 exits: *Mat x2 / [*Min]) -10/Mines (discovered 2 exits: *Mat x2) -9/Materials (discovered 2 exits: *Mat / *Min) -9/Mines (discovered 2 exits: *Mat / *Exi) -9/Exiles -8/Mines -8/Materials (discovered 2 exits: [*Fac] / Gar) -8/Garrison (discovered 2 exits: [*Sto x2]) -8/Storage History --------- Turn | Location | Event 4 | -11/Scrapyard | Discovered new exit (range 3) 23 | -11/Scrapyard | Entered Materials 307 | -10/Materials | Build established: Mutant 308 | -10/Materials | Discovered new exit (range 14) 566 | -10/Materials | Discovered new exit (range 15) 743 | -10/Materials | Core integrity fell below 50% 854 | -10/Materials | Discovered new exit (range 13) 960 | -10/Materials | Entered Mines 960 | -10/Mines | A weapon hastily lodged in a ceiling crevice suddenly fell to the ground 999 | -10/Mines | Met a Derelict bent on vengeance 1102 | -10/Mines | Discovered new exit (range 9) 1206 | -10/Mines | Learned location of Recycling (-8) 1315 | -10/Mines | Discovered new exit (range 15) 1370 | -10/Mines | Learned Materials non-interactive machine intel 1868 | -10/Mines | Entered Materials 1868 | -9/Materials | Evolved 2 slots: Utility x2 1869 | -9/Materials | Loaded intel: 55 non-interactive machine locations 2252 | -9/Materials | Build established: Hauler-Mutant 2509 | -9/Materials | Identified exit to Mines 2715 | -9/Materials | Discovered new exit (range 9) 2845 | -9/Materials | Repaired Hcp. Storage Unit 3157 | -9/Materials | Entered Mines 3186 | -9/Mines | Discovered new exit (range 16) 3200 | -9/Mines | Lost 3 parts (1n2w) 3279 | -9/Mines | Core integrity fell below 50% 3356 | -9/Mines | Received a Rocket Launcher from a helpful Derelict 3424 | -9/Mines | Learned Materials stockpile data 3515 | -9/Mines | Lost 3 parts (1p1u1w) 3652 | -9/Mines | Deemed a non-threat by the Exiles lab entrance 3848 | -9/Mines | Assembled infested the area 3900 | -9/Mines | Found a damaged Exp. Sensor Array with a note attached 3905 | -9/Mines | Found Prototype Device 4022 | -9/Mines | Discovered new exit (range 5) 4030 | -9/Mines | Entered Exiles 4080 | -9/Exiles | Met 8R-AWN 4110 | -9/Exiles | Met EX-HEX 4166 | -9/Exiles | Met EX-BIN 4242 | -9/Exiles | Aligned with FarCom system 4244 | -9/Exiles | Given EX-Vault access code 4294 | -9/Exiles | Opened EX-Vault 4306 | -9/Exiles | Found Latent Energy Streamer 4315 | -9/Exiles | Identified Exp. Sensor Array 4325 | -9/Exiles | Found Lightpack 2.0 4332 | -9/Exiles | Found Firepult 4375 | -9/Exiles | Warned to stay clear of 0b10 Research branches 4433 | -9/Exiles | Met EX-DEC 4455 | -9/Exiles | Learned location of Zion (-6) 4721 | -9/Exiles | Discovered new exit (range 10) 4739 | -9/Exiles | Stole three prototypes: Lightpack 2.0, Latent Energy Streamer, Firepult 4739 | -9/Exiles | Entered Mines 4838 | -8/Mines | Discovered new exit (range 15) 5041 | -8/Mines | Entered Materials 5041 | -8/Materials | Evolved 2 slots: Utility x2 5228 | -8/Materials | Discovered new exit (range 8) 7000 | -8/Materials | Repaired Exp. Sensor Array 7139 | -8/Materials | Identified exit to Garrison 7139 | -8/Materials | Entered Garrison 7159 | -8/Garrison | Triggered checkpoint 7326 | -8/Garrison | Triggered checkpoint 7370 | -8/Garrison | Triggered checkpoint 7438 | -8/Garrison | Discovered new exit (range 10) 7622 | -8/Garrison | Discovered new exit (range 8) 7651 | -8/Garrison | Installed Relay Interface Framework 7730 | -8/Garrison | Triggered checkpoint 7780 | -8/Garrison | Garrison Relay disabled 7903 | -8/Garrison | Phase Generator disabled 8454 | -8/Garrison | Entered Storage 8456 | -8/Storage | Self-destructed Last Messages --------------- 08209_ Field strength at 40. 08210_ Field strength at 10. 08211_ Stasis field depleted. 08229_ Triggered Stasis Trap. 08229_ A bubble of rippling energy engulfs the area. 08229_ Field strength at 70. 08231_ Field strength at 40. 08232_ Field strength at 10. 08233_ Stasis field depleted. 08233_ Triggered Stasis Trap. 08233_ A bubble of rippling energy engulfs the area. 08233_ Field strength at 70. 08236_ Field strength at 40. 08237_ Field strength at 10. 08238_ Stasis field depleted. 08454_ Attempting to access garrison exit controls... RIF authorized. LOCATION=UNKNOWN GOAL=ESCAPE 08454_ Receiving FarCom transmissions... Map ----- +----------------------------------------------------+ | ???????????????????????????????????? | | ???????????????????????????????????? | | ???????????????????????????????????? | | ???????????????????????????????????? | | ???????????????????????????????????? | | ???????????????????????????????????? | | ???????????????????????????????????? | | ???????????????????????????????????? | | ???????????????????????????????????? | | ???????????????????????????????????? | | ???????????????????????????????????? | | ???????????????????????????????????? | | ?????????????????????????Y?????????? | | ???????????????????????????????????? | | ?????????????????????gg????????????? | | ???????????????????????????????Y???? | | ???????????????????????????????????? | | ???????????????????????????????????? | | ???????????????????????????????????? | | ?????????????????????????g?????????? | | ???????????????????????????????????? | | ???????????????????????????????????? | | ???????????????????????????????????? | | ???????????# ###########???????? | | ???????????# #???????? | | ???????????? T @ #???????? | | ???????????# #???????? | | ???????????# #######+###???????? | | ???????????????????????????????????? | | ???????????????????????????????????? | | ???????????????????????????????????? | | ???????????????????????????????????? | | ???????????????????????????????????? | | ???????????????????????????????????? | | ?????????Y?????????????????????????? | | ???????????????????????????????????? | | ???????????????????????????????????? | | ???????????????????????????????????? | | ???????????????????????????????????? | | | | | | | | | | | | | | | | | | | | | | | +----------------------------------------------------+ Best States ------------- Heat Dissipation 41 Energy Generation 12 Energy Capacity 265 Matter Stores 300 Matter Capacity 300 Sight Range 16 Terrain Scan Density 10 Armor Coverage 675 Resistance: KI 20 Evasion (%) 40 Recoil Reduction 2 Force Boost 3 Offensive Hacking 20 Item Schematics ----------------- Hcp. Storage Unit | -9/Materials | Hacked Exp. Sensor Array | -8/Materials | Scanalyzed Robot Schematics ------------------ None Fabricated ------------ Nothing Alien Tech Used ----------------- None Achievements -------------- None Challenges ------------ None Game ------ Seed MachineSwarmStorm Manual? 0 Play Time 00:45:00 Cumulative 226.6 hours Start 2019.12.07 @ 01:05:57 End 2019.12.10 @ 01:16:08 Sessions 3 Manual Loads 0 Difficulty Rogue Special Mode None Game No. 193 Rogue 183 Adventurer 10 Explorer 0 Win Type - Total 4 Types 3/0/0/1/0/0/0 Lore% 66 Gallery% 83 Achievement% 66 Wizard Run 0 Options --------- ASCII 0 Keyboard 1 Movement Numpad Keybinds 0 Fullscreen 2 Font 18/SmallcapsGlow Map View 76x50 Tactical HUD 1 Map Filters NONE Filters NONE Steam 1 RUN: eaef65e2-cccf-403d-b770-df7712d9aecf